fUST/lending_fUST_20260506
["ID","MTS","AMOUNT","RATE_DAILY","PERIOD"]
[421653720,1778028639000,-636.57,0.00012328,2]
[421653719,1778028639000,-943.53,0.00012328,2]
[421653718,1778028639000,-500.0,0.00012328,2]
[421653721,1778028639000,-500.0,0.00012328,2]
[421653713,1778028639000,-500.0,0.00012328,2]
[421653712,1778028639000,-607.42,0.00012328,2]
[421653710,1778028639000,-500.0,0.00012328,2]
[421653711,1778028639000,-2173.14,0.00012328,2]
[421653708,1778028639000,-500.0,0.00012328,2]
[421653727,1778028639000,-956.25,0.00012328,2]
[421653707,1778028639000,-515.44,0.00012328,2]
[421653709,1778028639000,-701.85,0.00012328,2]
[421653726,1778028639000,-549.29,0.00012328,2]
[421653741,1778028639000,-500.0,0.00012328,2]
[421653729,1778028639000,-697.13,0.00012328,2]
[421653730,1778028639000,-500.0,0.00012328,2]
[421653725,1778028639000,-500.0,0.00012328,2]
[421653728,1778028639000,-500.0,0.00012328,2]
[421653723,1778028639000,-500.0,0.00012328,2]
[421653724,1778028639000,-829.83,0.00012328,2]
[421653731,1778028639000,-500.0,0.00012328,2]
[421653742,1778028639000,-500.0,0.00012328,2]
[421653745,1778028639000,-656.77,0.00012328,2]
[421653744,1778028639000,-918.7,0.00012328,2]
[421653736,1778028639000,-500.0,0.00012328,2]
[421653739,1778028639000,-500.0,0.00012328,2]
[421653716,1778028639000,-500.0,0.00012328,2]
[421653722,1778028639000,-1085.47,0.00012328,2]
[421653705,1778028639000,-500.0,0.00012328,2]
[421653689,1778028639000,-500.0,0.00012328,2]
[421653715,1778028639000,-500.0,0.00012328,2]
[421653732,1778028639000,-500.0,0.00012328,2]
[421653677,1778028639000,-1285.83,0.00012328,2]
[421653687,1778028639000,-635.8359009,0.00012328,2]
[421653688,1778028639000,-500.0,0.00012328,2]
[421653681,1778028639000,-500.0,0.00012328,2]
[421653684,1778028639000,-500.0,0.00012328,2]
[421653685,1778028639000,-720.81,0.00012328,2]
[421653678,1778028639000,-500.0,0.00012328,2]
[421653679,1778028639000,-500.0,0.00012328,2]
[421653682,1778028639000,-500.0,0.00012328,2]
[421653686,1778028639000,-500.0,0.00012328,2]
[421653683,1778028639000,-500.0,0.00012328,2]
[421653680,1778028639000,-500.0,0.00012328,2]
[421653692,1778028639000,-500.0,0.00012328,2]
[421653698,1778028639000,-500.0,0.00012328,2]
[421653697,1778028639000,-623.83,0.00012328,2]
[421653691,1778028639000,-500.0,0.00012328,2]
[421653690,1778028639000,-500.0,0.00012328,2]
[421653700,1778028639000,-1956.3,0.00012328,2]
[421653699,1778028639000,-500.0,0.00012328,2]
[421653696,1778028639000,-500.0,0.00012328,2]
[421653694,1778028639000,-500.0,0.00012328,2]
[421653693,1778028639000,-500.0,0.00012328,2]
[421653702,1778028639000,-500.0,0.00012328,2]
[421653701,1778028639000,-500.0,0.00012328,2]
[421653695,1778028639000,-500.0,0.00012328,2]
[421653704,1778028639000,-1026.55,0.00012328,2]
[421653714,1778028639000,-500.0,0.00012328,2]
[421653703,1778028639000,-500.0,0.00012328,2]
[421653706,1778028639000,-500.0,0.00012328,2]
[421653733,1778028639000,-1387.6,0.00012328,2]
[421653775,1778028639000,-2232.68,0.00012328,2]
[421653737,1778028639000,-901.94,0.00012328,2]
[421653778,1778028639000,-2066.77,0.00012328,2]
[421653779,1778028639000,-2463.98,0.00012328,2]
[421653780,1778028639000,-500.0,0.00012328,2]
[421653785,1778028639000,-500.0,0.00012328,2]
[421653777,1778028639000,-577.43,0.00012328,2]
[421653782,1778028639000,-551.21,0.00012328,2]
[421653784,1778028639000,-500.0,0.00012328,2]
[421653789,1778028639000,-500.0,0.00012328,2]
[421653786,1778028639000,-500.0,0.00012328,2]
[421653783,1778028639000,-500.0,0.00012328,2]
[421653788,1778028639000,-1884.75,0.00012328,2]
[421653787,1778028639000,-500.0,0.00012328,2]
[421653800,1778028639000,-500.0,0.00012328,2]
[421653781,1778028639000,-500.0,0.00012328,2]
[421653798,1778028639000,-500.0,0.00012328,2]
[421653799,1778028639000,-500.0,0.00012328,2]
[421653803,1778028639000,-1244.71,0.00012328,2]
[421653792,1778028639000,-518.32,0.00012328,2]
[421653791,1778028639000,-500.0,0.00012328,2]
[421653802,1778028639000,-2057.43,0.00012328,2]
[421653790,1778028639000,-500.0,0.00012328,2]
[421653793,1778028639000,-1665.51,0.00012328,2]
[421653796,1778028639000,-2293.71,0.00012328,2]
[421653795,1778028639000,-322.70727947,0.00012328,2]
[421653797,1778028639000,-500.0,0.00012328,2]
[421653794,1778028639000,-683.73,0.00012328,2]
[421653805,1778028639000,-500.0,0.00012328,2]
[421653735,1778028639000,-500.0,0.00012328,2]
[421653801,1778028639000,-500.0,0.00012328,2]
[421653776,1778028639000,-863.16,0.00012328,2]
[421653804,1778028639000,-670.73,0.00012328,2]
[421653773,1778028639000,-1960.45,0.00012328,2]
[421653734,1778028639000,-2297.0,0.00012328,2]
[421653738,1778028639000,-500.0,0.00012328,2]
[421653740,1778028639000,-2308.19,0.00012328,2]
[421653747,1778028639000,-500.0,0.00012328,2]
[421653757,1778028639000,-500.0,0.00012328,2]
[421653758,1778028639000,-500.0,0.00012328,2]
[421653752,1778028639000,-3794.92,0.00012328,2]
[421653756,1778028639000,-1881.67,0.00012328,2]
[421653771,1778028639000,-500.0,0.00012328,2]
[421653760,1778028639000,-500.0,0.00012328,2]
[421653749,1778028639000,-500.0,0.00012328,2]
[421653750,1778028639000,-500.0,0.00012328,2]
[421653746,1778028639000,-500.0,0.00012328,2]
[421653748,1778028639000,-500.0,0.00012328,2]
[421653753,1778028639000,-500.0,0.00012328,2]
[421653751,1778028639000,-500.0,0.00012328,2]
[421653772,1778028639000,-6092.21,0.00012328,2]
[421653754,1778028639000,-500.0,0.00012328,2]
[421653763,1778028639000,-1374.01,0.00012328,2]
[421653768,1778028639000,-596.57,0.00012328,2]
[421653806,1778028639000,-1527.48,0.00012328,2]
[421653770,1778028639000,-500.0,0.00012328,2]
[421653774,1778028639000,-500.0,0.00012328,2]
[421653767,1778028639000,-6638.84,0.00012328,2]
[421653766,1778028639000,-500.0,0.00012328,2]
[421653764,1778028639000,-500.0,0.00012328,2]
[421653765,1778028639000,-442.64627575,0.00012328,2]
[421653762,1778028639000,-500.0,0.00012328,2]
[421653755,1778028639000,-3256.94,0.00012328,2]
[421653769,1778028639000,-500.0,0.00012328,2]
[421653864,1778028640000,-500.0,0.00012328,2]
[421653866,1778028640000,-500.0,0.00012328,2]
[421653862,1778028640000,-1029.05,0.00012328,2]
[421653863,1778028640000,-1443.47,0.00012328,2]
[421653865,1778028640000,-1634.37,0.00012328,2]
[421653855,1778028640000,-529.5,0.00012328,2]
[421653853,1778028640000,-1798.55,0.00012328,2]
[421653857,1778028640000,-1869.45,0.00012328,2]
[421653851,1778028640000,-1254.49,0.00012328,2]
[421653852,1778028640000,-588.0,0.00012328,2]
[421653854,1778028640000,-151.0,0.00012328,2]
[421653861,1778028640000,-500.0,0.00012328,2]
[421653872,1778028640000,-3012.61,0.00012328,2]
[421653883,1778028640000,-279.51,0.00012329,2]
[421653868,1778028640000,-1599.35,0.00012328,2]
[421653867,1778028640000,-910.78,0.00012328,2]
[421653870,1778028640000,-2901.66,0.00012328,2]
[421653869,1778028640000,-500.0,0.00012328,2]
[421653871,1778028640000,-500.0,0.00012328,2]
[421653876,1778028640000,-613.24,0.00012329,2]
[421653875,1778028640000,-500.0,0.00012328,2]
[421653878,1778028640000,-613.24,0.00012329,2]
[421653881,1778028640000,-279.51,0.00012329,2]
[421653877,1778028640000,-613.24,0.00012329,2]
[421653880,1778028640000,-613.28,0.00012329,2]
[421653879,1778028640000,-613.24,0.00012329,2]
[421653850,1778028640000,-3298.74,0.00012328,2]
[421653874,1778028640000,-750.21,0.00012328,2]
[421653849,1778028640000,-548.79,0.00012328,2]
[421653840,1778028640000,-500.0,0.00012328,2]
[421653847,1778028640000,-500.0,0.00012328,2]
[421653884,1778028640000,-252.38,0.00012329,2]
[421653807,1778028640000,-4254.92,0.00012328,2]
[421653809,1778028640000,-2154.57,0.00012328,2]
[421653808,1778028640000,-2969.09,0.00012328,2]
[421653817,1778028640000,-500.0,0.00012328,2]
[421653821,1778028640000,-500.0,0.00012328,2]
[421653810,1778028640000,-500.0,0.00012328,2]
[421653813,1778028640000,-844.06,0.00012328,2]
[421653819,1778028640000,-500.0,0.00012328,2]
[421653812,1778028640000,-5585.2,0.00012328,2]
[421653811,1778028640000,-1850.31,0.00012328,2]
[421653823,1778028640000,-5696.69,0.00012328,2]
[421653831,1778028640000,-500.0,0.00012328,2]
[421653856,1778028640000,-500.0,0.00012328,2]
[421653842,1778028640000,-1414.39,0.00012328,2]
[421653843,1778028640000,-6011.57,0.00012328,2]
[421653836,1778028640000,-1159.0,0.00012328,2]
[421653827,1778028640000,-500.0,0.00012328,2]
[421653825,1778028640000,-2172.78,0.00012328,2]
[421653829,1778028640000,-31023.77,0.00012328,2]
[421653844,1778028640000,-1325.31,0.00012328,2]
[421653845,1778028640000,-500.0,0.00012328,2]
[421653846,1778028640000,-500.0,0.00012328,2]
[421653833,1778028640000,-500.0,0.00012328,2]
[421653848,1778028640000,-2526.55,0.00012328,2]
[421653858,1778028640000,-888.24,0.00012328,2]
[421653859,1778028640000,-6278.85,0.00012328,2]
[421653860,1778028640000,-7111.48,0.00012328,2]
[421653838,1778028640000,-500.0,0.00012328,2]
[421653882,1778028640000,-279.51,0.00012329,2]
[421653815,1778028640000,-1022.34,0.00012328,2]
[421653886,1778028640000,-9475.42248201,0.00012601,2]
[421653930,1778028640000,-623.83,0.00012602,2]
[421653928,1778028640000,-500.0,0.00012602,2]
[421653929,1778028640000,-500.0,0.00012602,2]
[421653926,1778028640000,-500.0,0.00012602,2]
[421653934,1778028640000,-500.0,0.00012602,2]
[421653945,1778028640000,-500.0,0.00012602,2]
[421653944,1778028640000,-500.0,0.00012602,2]
[421653938,1778028640000,-701.85,0.00012602,2]
[421653935,1778028640000,-1026.55,0.00012602,2]
[421653937,1778028640000,-515.44,0.00012602,2]
[421653936,1778028640000,-500.0,0.00012602,2]
[421653939,1778028640000,-500.0,0.00012602,2]
[421653942,1778028640000,-500.0,0.00012602,2]
[421653925,1778028640000,-500.0,0.00012602,2]
[421653940,1778028640000,-2173.14,0.00012602,2]
[421653943,1778028640000,-500.0,0.00012602,2]
[421653946,1778028640000,-943.53,0.00012602,2]
[421653950,1778028640000,-829.83,0.00012602,2]
[421653947,1778028640000,-636.57,0.00012602,2]
[421653948,1778028640000,-1085.47,0.00012602,2]
[421653949,1778028640000,-500.0,0.00012602,2]
[421653952,1778028640000,-549.29,0.00012602,2]
[421653953,1778028640000,-956.25,0.00012602,2]
[421653954,1778028640000,-500.0,0.00012602,2]
[421653951,1778028640000,-500.0,0.00012602,2]
[421653955,1778028640000,-697.13,0.00012602,2]
[421653956,1778028640000,-500.0,0.00012602,2]
[421653885,1778028640000,-160.0,0.000125,3]
[421653941,1778028640000,-607.42,0.00012602,2]
[421653927,1778028640000,-500.0,0.00012602,2]
[421653933,1778028640000,-1956.3,0.00012602,2]
[421653932,1778028640000,-500.0,0.00012602,2]
[421653888,1778028640000,-500.0,0.00012602,2]
[421653921,1778028640000,-500.0,0.00012602,2]
[421653893,1778028640000,-1034.98,0.00012602,2]
[421653891,1778028640000,-500.0,0.00012602,2]
[421653890,1778028640000,-500.0,0.00012602,2]
[421653887,1778028640000,-878.8032,0.00012602,2]
[421653897,1778028640000,-500.0,0.00012602,2]
[421653889,1778028640000,-500.0,0.00012602,2]
[421653896,1778028640000,-546.96,0.00012602,2]
[421653894,1778028640000,-500.0,0.00012602,2]
[421653892,1778028640000,-500.0,0.00012602,2]
[421653899,1778028640000,-500.0,0.00012602,2]
[421653911,1778028640000,-500.0,0.00012602,2]
[421653902,1778028640000,-500.0,0.00012602,2]
[421653917,1778028640000,-500.0,0.00012602,2]
[421653895,1778028640000,-500.0,0.00012602,2]
[421653924,1778028640000,-500.0,0.00012602,2]
[421653922,1778028640000,-500.0,0.00012602,2]
[421653913,1778028640000,-548.09,0.00012602,2]
[421653923,1778028640000,-720.81,0.00012602,2]
[421653931,1778028640000,-500.0,0.00012602,2]
[421653920,1778028640000,-1285.83,0.00012602,2]
[421653906,1778028640000,-500.0,0.00012602,2]
[421653919,1778028640000,-500.0,0.00012602,2]
[421653904,1778028640000,-500.0,0.00012602,2]
[421653898,1778028640000,-500.0,0.00012602,2]
[421653900,1778028640000,-947.6,0.00012602,2]
[421653901,1778028640000,-500.0,0.00012602,2]
[421653915,1778028640000,-1105.76,0.00012602,2]
[421653908,1778028640000,-500.0,0.00012602,2]
[421653976,1778028641000,-500.0,0.00012602,2]
[421653983,1778028641000,-6638.84,0.00012602,2]
[421653979,1778028641000,-500.0,0.00012602,2]
[421653984,1778028641000,-596.57,0.00012602,2]
[421653974,1778028641000,-500.0,0.00012602,2]
[421653977,1778028641000,-3256.94,0.00012602,2]
[421653987,1778028641000,-2232.68,0.00012602,2]
[421653980,1778028641000,-1374.01,0.00012602,2]
[421653982,1778028641000,-500.0,0.00012602,2]
[421653985,1778028641000,-6092.21,0.00012602,2]
[421653981,1778028641000,-500.0,0.00012602,2]
[421653975,1778028641000,-3794.92,0.00012602,2]
[421653978,1778028641000,-1881.67,0.00012602,2]
[421653973,1778028641000,-500.0,0.00012602,2]
[421653957,1778028641000,-500.0,0.00012602,2]
[421653969,1778028641000,-656.77,0.00012602,2]
[421653964,1778028641000,-2308.19,0.00012602,2]
[421653972,1778028641000,-500.0,0.00012602,2]
[421653965,1778028641000,-2400.9814,0.00012602,2]
[421653966,1778028641000,-500.0,0.00012602,2]
[421653967,1778028641000,-500.0,0.00012602,2]
[421653968,1778028641000,-918.7,0.00012602,2]
[421653970,1778028641000,-500.0,0.00012602,2]
[421653963,1778028641000,-151.0,0.00012602,2]
[421653960,1778028641000,-500.0,0.00012602,2]
[421653961,1778028641000,-500.0,0.00012602,2]
[421653959,1778028641000,-2297.0,0.00012602,2]
[421653958,1778028641000,-1387.6,0.00012602,2]
[421653986,1778028641000,-1960.45,0.00012602,2]
[421653971,1778028641000,-500.0,0.00012602,2]
[421653993,1778028641000,-500.0,0.00012602,2]
[421653962,1778028641000,-901.94,0.00012602,2]
[421653996,1778028641000,-1884.75,0.00012602,2]
[421653988,1778028641000,-863.16,0.00012602,2]
[421654020,1778028641000,-612.47728457,0.00012602,2]
[421654019,1778028641000,-4731.35963474,0.00012602,2]
[421654016,1778028641000,-1022.34,0.00012602,2]
[421654017,1778028641000,-500.0,0.00012602,2]
[421654018,1778028641000,-500.0,0.00012602,2]
[421654015,1778028641000,-844.06,0.00012602,2]
[421654014,1778028641000,-5585.2,0.00012602,2]
[421654011,1778028641000,-2969.09,0.00012602,2]
[421654012,1778028641000,-2154.57,0.00012602,2]
[421654013,1778028641000,-1850.31,0.00012602,2]
[421654010,1778028641000,-4254.92,0.00012602,2]
[421654002,1778028641000,-2293.71,0.00012602,2]
[421654004,1778028641000,-500.0,0.00012602,2]
[421654009,1778028641000,-1527.48,0.00012602,2]
[421654008,1778028641000,-500.0,0.00012602,2]
[421653990,1778028641000,-2066.77,0.00012602,2]
[421654006,1778028641000,-1244.71,0.00012602,2]
[421653999,1778028641000,-518.32,0.00012602,2]
[421654005,1778028641000,-2057.43,0.00012602,2]
[421654003,1778028641000,-500.0,0.00012602,2]
[421654000,1778028641000,-1665.51,0.00012602,2]
[421654001,1778028641000,-683.73,0.00012602,2]
[421653994,1778028641000,-551.21,0.00012602,2]
[421653991,1778028641000,-2463.98,0.00012602,2]
[421654007,1778028641000,-670.73,0.00012602,2]
[421653992,1778028641000,-500.0,0.00012602,2]
[421653989,1778028641000,-577.43,0.00012602,2]
[421653995,1778028641000,-500.0,0.00012602,2]
[421653997,1778028641000,-500.0,0.00012602,2]
[421653998,1778028641000,-500.0,0.00012602,2]
[421654088,1778028646000,-5000.0,0.0001151,2]
[421654094,1778028646000,-312.6737759,0.00012328,2]
[421654090,1778028646000,-500.0,0.00012328,2]
[421654099,1778028646000,-2172.78,0.00012602,2]
[421654086,1778028646000,-152.0,0.00010835,7]
[421654092,1778028646000,-500.0,0.00012328,2]
[421654097,1778028646000,-187.3262241,0.00012328,2]
[421654101,1778028646000,-7694.73412816,0.00012602,2]
[421654100,1778028646000,-500.0,0.00012602,2]
[421654098,1778028646000,-352.85308069,0.00012602,2]
[421654129,1778028649000,-628.78756458,0.00011395,2]
[421654130,1778028649000,-1297.21331,0.00011395,2]
[421654149,1778028687000,152.0,0.00010833,30]
[421654152,1778028845000,1669263.32374461,0.00020821,120]
[421654153,1778028848000,152.0,0.00010836,30]
[421654154,1778028876000,152.0,0.00010836,30]
[421654158,1778029360000,152.0,0.00010834,30]
[421654201,1778029832000,-528.8461642,9.064e-05,2]
[421654200,1778029832000,-296.92009493,9.064e-05,2]
[421654202,1778029832000,-1009.63662955,9.064e-05,2]
[421654208,1778029840000,-1127.27088097,9.064e-05,2]
[421654274,1778029843000,-550.0,9.248e-05,2]
[421654275,1778029843000,-353.9104912,9.389e-05,2]
[421654279,1778029843000,-417.61437962,0.00011389,2]
[421654277,1778029843000,-600.0,0.00011,2]
[421654281,1778029843000,-300.0,0.0001139,2]
[421654268,1778029843000,-3313.16317046,9.156e-05,2]
[421654266,1778029843000,-2037.32623035,9.064e-05,2]
[421654270,1778029843000,-300.0,9.247e-05,2]
[421654272,1778029843000,-3291.48125749,9.248e-05,2]
[421654283,1778029843000,-300.0,0.0001139,2]
[421654300,1778029843000,-300.0,0.0001139,2]
[421654287,1778029843000,-300.0,0.0001139,2]
[421654295,1778029843000,-300.0,0.0001139,2]
[421654285,1778029843000,-300.0,0.0001139,2]
[421654292,1778029843000,-300.0,0.0001139,2]
[421654302,1778029843000,-278.56656588,0.0001139,2]
[421654294,1778029843000,-300.0,0.0001139,2]
[421654288,1778029843000,-300.0,0.0001139,2]
[421654299,1778029843000,-300.0,0.0001139,2]
[421654297,1778029843000,-300.0,0.0001139,2]
[421654298,1778029843000,-300.0,0.0001139,2]
[421654290,1778029843000,-300.0,0.0001139,2]
[421654354,1778029846000,-300.0,0.0001139,2]
[421654356,1778029846000,-200.0,0.00012,5]
[421654355,1778029846000,-2819.61958118,0.00011932,2]
[421654353,1778029846000,-21.43343412,0.0001139,2]
[421654357,1778029846000,-150.30725669,0.00012,5]
[421654358,1778029846000,-49.69274331,0.00012,5]
[421654364,1778029846000,-160.0,0.00012147,2]
[421654359,1778029846000,-200.0,0.00012,5]
[421654362,1778029846000,-428.0,0.00012082,3]
[421654365,1778029846000,-14.0866132,0.00012147,2]
[421654361,1778029846000,-200.4136744,0.00012,5]
[421654363,1778029846000,-4346.0,0.00012146,2]
[421654360,1778029846000,-200.78568067,0.00012,5]
[421654552,1778031033000,-669.85014291,0.00010586,2]
[421654712,1778031038000,-348.42448247,0.00010769,2]
[421654713,1778031038000,-152.0,0.00010835,7]
[421654711,1778031038000,-3581.01379649,0.00010586,2]
[421654710,1778031038000,-749.1360606,0.00010586,2]
[421654753,1778031039000,-578.20924308,0.00012173,2]
[421654751,1778031039000,-160.0,0.00012143,2]
[421654752,1778031039000,-161.56332863,0.00012143,2]
[421654749,1778031039000,-160.0,0.00012143,2]
[421654748,1778031039000,-557.5788265,0.00012118,2]
[421654744,1778031039000,-198.5,0.00012053,2]
[421654750,1778031039000,-160.0,0.00012143,2]
[421654746,1778031039000,-537.6845,0.00012063,2]
[421654755,1778031039000,-1099.98946168,0.00012228,2]
[421654745,1778031039000,-4074.17741375,0.00012054,2]
[421654747,1778031039000,-169.61959066,0.00012063,2]
[421654756,1778031039000,-599.60298507,0.00012228,2]
[421654761,1778031039000,-445.202766,0.00012321,2]
[421654758,1778031039000,-307.0,0.00012305,2]
[421654757,1778031039000,-621.78829552,0.00012283,2]
[421654762,1778031039000,-537.6845,0.00012321,2]
[421654743,1778031039000,-151.5,0.00012053,2]
[421654763,1778031039000,-151.0,0.00012321,2]
[421654760,1778031039000,-151.0,0.00012321,2]
[421654764,1778031039000,-500.0,0.00012327,2]
[421654765,1778031039000,-500.0,0.00012327,2]
[421654767,1778031039000,-500.0,0.00012327,2]
[421654766,1778031039000,-500.0,0.00012327,2]
[421654768,1778031039000,-303.07656034,0.00012327,2]
[421654769,1778031039000,-325.91842946,0.00012327,2]
[421654759,1778031039000,-162.380719,0.00012321,2]
[421654742,1778031039000,-287.0,0.00012053,2]
[421654737,1778031039000,-181.41,0.00011729,2]
[421654740,1778031039000,-151.5,0.00012053,2]
[421654770,1778031039000,-500.0,0.00012327,2]
[421654719,1778031039000,-150.7270413,0.00011201,2]
[421654716,1778031039000,-521.0,0.000112,2]
[421654715,1778031039000,-300.0,0.000112,2]
[421654718,1778031039000,-216.1498956,0.00011201,2]
[421654717,1778031039000,-6276.4769723,0.00011201,2]
[421654720,1778031039000,-300.0,0.00011424,2]
[421654722,1778031039000,-300.0,0.00011424,2]
[421654721,1778031039000,-300.0,0.00011424,2]
[421654723,1778031039000,-300.0,0.00011424,2]
[421654724,1778031039000,-300.0,0.00011424,2]
[421654730,1778031039000,-300.0,0.00011424,2]
[421654728,1778031039000,-300.0,0.00011424,2]
[421654725,1778031039000,-300.0,0.00011424,2]
[421654726,1778031039000,-300.0,0.00011424,2]
[421654729,1778031039000,-300.0,0.00011424,2]
[421654727,1778031039000,-300.0,0.00011424,2]
[421654731,1778031039000,-300.0,0.00011424,2]
[421654732,1778031039000,-300.0,0.00011424,2]
[421654734,1778031039000,-300.0,0.00011424,2]
[421654733,1778031039000,-300.0,0.00011424,2]
[421654736,1778031039000,-600.0,0.00011651,2]
[421654735,1778031039000,-272.0,0.00011479,3]
[421654739,1778031039000,-297.879,0.00012,2]
[421654738,1778031039000,-201.76,0.00011902,2]
[421654741,1778031039000,-151.5,0.00012053,2]
[421654774,1778031039000,-243.54249462,0.00012327,2]
[421654754,1778031039000,-2018.05125656,0.00012228,2]
[421654772,1778031039000,-500.0,0.00012327,2]
[421654803,1778031039000,-531.82261326,0.00012327,2]
[421654805,1778031039000,-531.82261326,0.00012327,2]
[421654811,1778031039000,-546.85,0.00012328,2]
[421654809,1778031039000,-500.0,0.00012328,2]
[421654810,1778031039000,-500.0,0.00012328,2]
[421654807,1778031039000,-500.0,0.00012327,2]
[421654804,1778031039000,-531.82261326,0.00012327,2]
[421654806,1778031039000,-957.28070392,0.00012327,2]
[421654808,1778031039000,-3006.4545,0.00012328,2]
[421654812,1778031039000,-500.0,0.00012328,2]
[421654813,1778031039000,-500.0,0.00012328,2]
[421654814,1778031039000,-500.0,0.00012328,2]
[421654816,1778031039000,-500.0,0.00012328,2]
[421654818,1778031039000,-500.0,0.00012328,2]
[421654821,1778031039000,-500.0,0.00012328,2]
[421654815,1778031039000,-500.0,0.00012328,2]
[421654823,1778031039000,-500.0,0.00012328,2]
[421654817,1778031039000,-500.0,0.00012328,2]
[421654822,1778031039000,-500.0,0.00012328,2]
[421654819,1778031039000,-937.14,0.00012328,2]
[421654824,1778031039000,-500.0,0.00012328,2]
[421654825,1778031039000,-500.0,0.00012328,2]
[421654826,1778031039000,-500.0,0.00012328,2]
[421654828,1778031039000,-872.83,0.00012328,2]
[421654773,1778031039000,-500.0,0.00012327,2]
[421654802,1778031039000,-531.82261326,0.00012327,2]
[421654801,1778031039000,-531.82261326,0.00012327,2]
[421654820,1778031039000,-500.0,0.00012328,2]
[421654794,1778031039000,-531.82261327,0.00012327,2]
[421654800,1778031039000,-531.82261326,0.00012327,2]
[421654775,1778031039000,-500.0,0.00012327,2]
[421654771,1778031039000,-500.0,0.00012327,2]
[421654777,1778031039000,-500.0,0.00012327,2]
[421654776,1778031039000,-500.0,0.00012327,2]
[421654779,1778031039000,-531.82261327,0.00012327,2]
[421654785,1778031039000,-531.82261327,0.00012327,2]
[421654786,1778031039000,-531.82261327,0.00012327,2]
[421654778,1778031039000,-390.25189812,0.00012327,2]
[421654781,1778031039000,-531.82261327,0.00012327,2]
[421654780,1778031039000,-531.82261327,0.00012327,2]
[421654782,1778031039000,-531.82261327,0.00012327,2]
[421654784,1778031039000,-531.82261327,0.00012327,2]
[421654787,1778031039000,-531.82261327,0.00012327,2]
[421654783,1778031039000,-531.82261327,0.00012327,2]
[421654799,1778031039000,-531.82261326,0.00012327,2]
[421654798,1778031039000,-531.82261326,0.00012327,2]
[421654796,1778031039000,-531.82261326,0.00012327,2]
[421654797,1778031039000,-531.82261326,0.00012327,2]
[421654792,1778031039000,-531.82261327,0.00012327,2]
[421654790,1778031039000,-531.82261327,0.00012327,2]
[421654795,1778031039000,-531.82261327,0.00012327,2]
[421654791,1778031039000,-531.82261327,0.00012327,2]
[421654789,1778031039000,-531.82261327,0.00012327,2]
[421654788,1778031039000,-531.82261327,0.00012327,2]
[421654827,1778031039000,-500.0,0.00012328,2]
[421654793,1778031039000,-531.82261327,0.00012327,2]
[421654867,1778031040000,-502.41,0.00012328,2]
[421654877,1778031040000,-500.0,0.00012328,2]
[421654875,1778031040000,-2105.58,0.00012328,2]
[421654873,1778031040000,-500.0,0.00012328,2]
[421654872,1778031040000,-639.04,0.00012328,2]
[421654871,1778031040000,-500.0,0.00012328,2]
[421654866,1778031040000,-503.52,0.00012328,2]
[421654868,1778031040000,-1271.97,0.00012328,2]
[421654869,1778031040000,-500.0,0.00012328,2]
[421654870,1778031040000,-876.56,0.00012328,2]